[Event "Titled Tuesday Blitz January 31 Early 2023"]
[White "Timofeev, Artyom"]
[Black "Martynov, Pavel"]
[WhiteFideId "4140419"]
[BlackFideId "4101260"]
[WhiteElo "2567"]
[BlackElo "2414"]
[Result "1-0"]
[Round "08"]
[TimeControl "180+2"]
[Date "2023.01.31"]
[WhiteClock "0:00:11"]
[BlackClock "0:00:10"]

1. e4 {[%clk 0:03:00]}  c5 {[%clk 0:02:59]} 2. Nf3 {[%clk 0:02:59]}  e6 {[%clk 0:03:00]} 3. d4 {[%clk 0:02:57]}  cxd4 {[%clk 0:03:00]} 4. Nxd4 {[%clk 0:02:58]}  Nc6 {[%clk 0:03:01]} 5. Nc3 {[%clk 0:02:57]}  Qc7 {[%clk 0:03:01]} 6. h4 {[%clk 0:02:52]}  a6 {[%clk 0:02:53]} 7. g4 {[%clk 0:02:51]}  Bb4 {[%clk 0:02:49]} 8. Bg2 {[%clk 0:02:39]}  h5 {[%clk 0:02:13]} 9. gxh5 {[%clk 0:02:34]}  Nf6 {[%clk 0:02:07]} 10. h6 {[%clk 0:02:33]}  gxh6 {[%clk 0:02:06]} 11. Be3 {[%clk 0:02:28]}  Ne5 {[%clk 0:02:05]} 12. Ne2 {[%clk 0:02:20]}  Rg8 {[%clk 0:01:36]} 13. Kf1 {[%clk 0:02:17]}  Nfg4 {[%clk 0:01:02]} 14. Bf4 {[%clk 0:02:02]}  b5 {[%clk 0:01:00]} 15. f3 {[%clk 0:01:27]}  Nf6 {[%clk 0:00:21]} 16. Qd4 {[%clk 0:01:27]}  Bxc3 {[%clk 0:00:14]} 17. Qxc3 {[%clk 0:01:17]}  Qxc3 {[%clk 0:00:13]} 18. Nxc3 {[%clk 0:01:17]}  Nc4 {[%clk 0:00:12]} 19. b3 {[%clk 0:01:13]}  Nh5 {[%clk 0:00:12]} 20. Bxh6 {[%clk 0:01:05]}  Ng3+ {[%clk 0:00:11]} 21. Kf2 {[%clk 0:01:06]}  Nxh1+ {[%clk 0:00:11]} 22. Rxh1 {[%clk 0:01:05]}  Ne5 {[%clk 0:00:11]} 23. h5 {[%clk 0:01:04]}  Bb7 {[%clk 0:00:11]} 24. Bf4 {[%clk 0:01:04]}  f6 {[%clk 0:00:11]} 25. Ne2 {[%clk 0:01:04]}  Kf7 {[%clk 0:00:11]} 26. Rd1 {[%clk 0:01:01]}  Ke7 {[%clk 0:00:09]} 27. h6 {[%clk 0:00:58]}  Rac8 {[%clk 0:00:09]} 28. c3 {[%clk 0:00:57]}  Ng6 {[%clk 0:00:09]} 29. Be3 {[%clk 0:00:55]}  Rh8 {[%clk 0:00:08]} 30. b4 {[%clk 0:00:51]}  d6 {[%clk 0:00:06]} 31. Bh3 {[%clk 0:00:42]}  Ne5 {[%clk 0:00:06]} 32. Nd4 {[%clk 0:00:41]}  Nc4 {[%clk 0:00:06]} 33. Bc1 {[%clk 0:00:38]}  f5 {[%clk 0:00:03]} 34. exf5 {[%clk 0:00:36]}  e5 {[%clk 0:00:03]} 35. f6+ {[%clk 0:00:37]}  Kxf6 {[%clk 0:00:03]} 36. Bxc8 {[%clk 0:00:36]}  Bxc8 {[%clk 0:00:04]} 37. Nb3 {[%clk 0:00:32]}  Be6 {[%clk 0:00:02]} 38. Na5 {[%clk 0:00:31]}  Ke7 {[%clk 0:00:02]} 39. Nxc4 {[%clk 0:00:31]}  Bxc4 {[%clk 0:00:03]} 40. a3 {[%clk 0:00:31]}  Ke6 {[%clk 0:00:03]} 41. Rg1 {[%clk 0:00:30]}  Bd3 {[%clk 0:00:03]} 42. Rg7 {[%clk 0:00:27]}  Kd5 {[%clk 0:00:02]} 43. Rc7 {[%clk 0:00:26]}  Rh7 {[%clk 0:00:02]} 44. Rc8 {[%clk 0:00:26]}  Bc4 {[%clk 0:00:02]} 45. Kg3 {[%clk 0:00:23]}  Bd3 {[%clk 0:00:02]} 46. Kg4 {[%clk 0:00:23]}  e4 {[%clk 0:00:02]} 47. fxe4+ {[%clk 0:00:22]}  Bxe4 {[%clk 0:00:03]} 48. Kg5 {[%clk 0:00:22]}  Bd3 {[%clk 0:00:03]} 49. Rg8 {[%clk 0:00:20]}  Rf7 {[%clk 0:00:03]} 50. Bf4 {[%clk 0:00:15]}  Rf5+ {[%clk 0:00:03]} 51. Kg4 {[%clk 0:00:15]}  Rf7 {[%clk 0:00:03]} 52. Ra8 {[%clk 0:00:14]}  Bf5+ {[%clk 0:00:01]} 53. Kg5 {[%clk 0:00:14]}  Be6 {[%clk 0:00:02]} 54. Be3 {[%clk 0:00:09]}  Rf5+ {[%clk 0:00:03]} 55. Kg6 {[%clk 0:00:09]}  Re5 {[%clk 0:00:03]} 56. Bg5 {[%clk 0:00:09]}  Re2 {[%clk 0:00:03]} 57. h7 {[%clk 0:00:09]}  Rh2 {[%clk 0:00:02]} 58. h8=Q {[%clk 0:00:09]}  Rxh8 {[%clk 0:00:02]} 59. Rxh8 {[%clk 0:00:09]}  Kc4 {[%clk 0:00:03]} 60. Ra8 {[%clk 0:00:09]}  Bd5 {[%clk 0:00:04]} 61. Rxa6 {[%clk 0:00:09]}  Kxc3 {[%clk 0:00:05]} 62. Rxd6 {[%clk 0:00:09]}  Bc4 {[%clk 0:00:06]} 63. Kf6 {[%clk 0:00:09]}  Kb3 {[%clk 0:00:07]} 64. Bc1 {[%clk 0:00:09]}  Ka4 {[%clk 0:00:07]} 65. Be3 {[%clk 0:00:09]}  Kxa3 {[%clk 0:00:06]} 66. Bc5 {[%clk 0:00:09]}  Kb3 {[%clk 0:00:07]} 67. Ke5 {[%clk 0:00:10]}  Kc3 {[%clk 0:00:07]} 68. Ra6 {[%clk 0:00:10]}  Kb3 {[%clk 0:00:08]} 69. Kd4 {[%clk 0:00:10]}  Be2 {[%clk 0:00:09]} 70. Ke5 {[%clk 0:00:10]}  Bc4 {[%clk 0:00:10]} 71. Kd6 {[%clk 0:00:11]}  Bd3 {[%clk 0:00:10]} 72. Kc6 {[%clk 0:00:11]}  Be2 {[%clk 0:00:10]} 73. Kb6 {[%clk 0:00:11]}  Bd3 {[%clk 0:00:10]} 74. Ra5 {[%clk 0:00:10]}  Be2 {[%clk 0:00:08]} 75. Rxb5 {[%clk 0:00:10]}  Bxb5 {[%clk 0:00:08]} 76. Kxb5 {[%clk 0:00:10]}  Kc3 {[%clk 0:00:09]} 77. Kc6 {[%clk 0:00:11]}  Kc4 {[%clk 0:00:10]} 78. b5 {[%clk 0:00:11]} 1-0


[Site "https://www.chess.com"]

[Event "Titled Tuesday Blitz January 31 Early 2023"]
[White "Rakhmatullaev, Almas"]
[Black "Sukandar, Irine Kharisma"]
[WhiteFideId "14205793"]
[BlackFideId "7101937"]
[WhiteElo "2275"]
[BlackElo "2390"]
[Result "0-1"]
[Round "08"]
[TimeControl "180+2"]
[Date "2023.01.31"]
[WhiteClock "0:00:03"]
[BlackClock "0:00:24"]

1. e4 {[%clk 0:03:00]}  e5 {[%clk 0:02:58]} 2. Nf3 {[%clk 0:02:54]}  d6 {[%clk 0:02:57]} 3. d4 {[%clk 0:02:53]}  exd4 {[%clk 0:02:58]} 4. Nxd4 {[%clk 0:02:52]}  Nf6 {[%clk 0:02:58]} 5. Nc3 {[%clk 0:02:52]}  Be7 {[%clk 0:02:58]} 6. Be2 {[%clk 0:02:52]}  O-O {[%clk 0:02:59]} 7. O-O {[%clk 0:02:52]}  Re8 {[%clk 0:02:59]} 8. f4 {[%clk 0:02:52]}  Bf8 {[%clk 0:02:58]} 9. Bf3 {[%clk 0:02:52]}  c5 {[%clk 0:02:56]} 10. Nb3 {[%clk 0:02:49]}  Nc6 {[%clk 0:02:55]} 11. Re1 {[%clk 0:02:48]}  a6 {[%clk 0:02:54]} 12. Be3 {[%clk 0:02:44]}  Bd7 {[%clk 0:02:53]} 13. a4 {[%clk 0:02:34]}  Nb4 {[%clk 0:02:52]} 14. Qd2 {[%clk 0:02:22]}  Bc6 {[%clk 0:02:50]} 15. Bf2 {[%clk 0:02:22]}  b5 {[%clk 0:02:37]} 16. axb5 {[%clk 0:02:11]}  axb5 {[%clk 0:02:37]} 17. Rad1 {[%clk 0:02:12]}  Na2 {[%clk 0:02:19]} 18. e5 {[%clk 0:01:50]}  Bxf3 {[%clk 0:02:14]} 19. gxf3 {[%clk 0:01:51]}  Nxc3 {[%clk 0:01:58]} 20. Qxc3 {[%clk 0:01:34]}  Nh5 {[%clk 0:01:53]} 21. exd6 {[%clk 0:01:07]}  Rxe1+ {[%clk 0:01:51]} 22. Qxe1 {[%clk 0:01:01]}  Nxf4 {[%clk 0:01:43]} 23. Bg3 {[%clk 0:00:58]}  Ne6 {[%clk 0:01:33]} 24. Qe4 {[%clk 0:00:50]}  Ra4 {[%clk 0:01:30]} 25. Qc6 {[%clk 0:00:46]}  c4 {[%clk 0:00:52]} 26. Qxb5 {[%clk 0:00:40]}  Qa8 {[%clk 0:00:45]} 27. Nd4 {[%clk 0:00:23]}  Ra1 {[%clk 0:00:45]} 28. Rxa1 {[%clk 0:00:15]}  Qxa1+ {[%clk 0:00:44]} 29. Kg2 {[%clk 0:00:16]}  Nxd4 {[%clk 0:00:45]} 30. Qxc4 {[%clk 0:00:13]}  Qd1 {[%clk 0:00:41]} 31. d7 {[%clk 0:00:10]}  Qxf3+ {[%clk 0:00:41]} 32. Kg1 {[%clk 0:00:08]}  Ne6 {[%clk 0:00:23]} 33. Qxe6 {[%clk 0:00:06]}  Bc5+ {[%clk 0:00:23]} 34. Bf2 {[%clk 0:00:03]}  Qxf2+ {[%clk 0:00:23]} 35. Kh1 {[%clk 0:00:03]}  Qg1# {[%clk 0:00:24]} 0-1


[Site "https://www.chess.com"]

[Event "Titled Tuesday Blitz January 31 Early 2023"]
[White "Wong, Yinn Long"]
[Black "Ilkhomi, Jaloliddin"]
[WhiteFideId "5707684"]
[BlackFideId "14700948"]
[WhiteElo "2371"]
[BlackElo "1997"]
[Result "1/2-1/2"]
[Round "08"]
[TimeControl "180+2"]
[Date "2023.01.31"]
[WhiteClock "0:00:04"]
[BlackClock "0:00:04"]

1. d4 {[%clk 0:03:00]}  Nf6 {[%clk 0:02:56]} 2. Bf4 {[%clk 0:03:00]}  e6 {[%clk 0:02:53]} 3. e3 {[%clk 0:02:58]}  b6 {[%clk 0:02:53]} 4. Nd2 {[%clk 0:02:56]}  Bb7 {[%clk 0:02:54]} 5. Ngf3 {[%clk 0:02:57]}  d5 {[%clk 0:02:54]} 6. Bd3 {[%clk 0:02:52]}  Nbd7 {[%clk 0:02:52]} 7. c3 {[%clk 0:02:47]}  Bd6 {[%clk 0:02:51]} 8. Ne5 {[%clk 0:02:47]}  Qe7 {[%clk 0:02:49]} 9. Bg3 {[%clk 0:02:41]}  O-O {[%clk 0:02:47]} 10. Qf3 {[%clk 0:02:26]}  c5 {[%clk 0:02:38]} 11. a4 {[%clk 0:02:24]}  Rac8 {[%clk 0:02:29]} 12. Bf4 {[%clk 0:02:24]}  Bb8 {[%clk 0:01:49]} 13. h4 {[%clk 0:02:14]}  Nxe5 {[%clk 0:01:43]} 14. dxe5 {[%clk 0:02:14]}  Ne4 {[%clk 0:01:40]} 15. Nxe4 {[%clk 0:02:12]}  dxe4 {[%clk 0:01:41]} 16. Bxe4 {[%clk 0:02:13]}  Bxe4 {[%clk 0:01:42]} 17. Qxe4 {[%clk 0:02:13]}  Qd7 {[%clk 0:01:39]} 18. O-O {[%clk 0:02:01]}  Qd5 {[%clk 0:01:30]} 19. Qxd5 {[%clk 0:01:46]}  exd5 {[%clk 0:01:31]} 20. Rfd1 {[%clk 0:01:43]}  Rfd8 {[%clk 0:01:31]} 21. Rd2 {[%clk 0:01:35]}  Rd7 {[%clk 0:01:18]} 22. Rad1 {[%clk 0:01:29]}  Rcd8 {[%clk 0:01:09]} 23. Bg5 {[%clk 0:01:30]}  Re8 {[%clk 0:01:07]} 24. Rxd5 {[%clk 0:01:30]}  Rxd5 {[%clk 0:01:05]} 25. Rxd5 {[%clk 0:01:31]}  Bxe5 {[%clk 0:01:04]} 26. g3 {[%clk 0:01:01]}  f6 {[%clk 0:00:58]} 27. Bf4 {[%clk 0:01:01]}  Bxf4 {[%clk 0:00:58]} 28. gxf4 {[%clk 0:01:02]}  Re7 {[%clk 0:00:59]} 29. a5 {[%clk 0:01:02]}  Kf7 {[%clk 0:00:55]} 30. Rd6 {[%clk 0:00:37]}  Rb7 {[%clk 0:00:40]} 31. axb6 {[%clk 0:00:34]}  axb6 {[%clk 0:00:41]} 32. Kg2 {[%clk 0:00:34]}  Ke7 {[%clk 0:00:41]} 33. Rd2 {[%clk 0:00:35]}  f5 {[%clk 0:00:36]} 34. Kf3 {[%clk 0:00:34]}  Ra7 {[%clk 0:00:34]} 35. b4 {[%clk 0:00:20]}  Ra3 {[%clk 0:00:33]} 36. bxc5 {[%clk 0:00:20]}  bxc5 {[%clk 0:00:34]} 37. Rd5 {[%clk 0:00:18]}  Rxc3 {[%clk 0:00:31]} 38. Rxf5 {[%clk 0:00:18]}  Rc1 {[%clk 0:00:30]} 39. Ke4 {[%clk 0:00:15]}  c4 {[%clk 0:00:26]} 40. h5 {[%clk 0:00:13]}  Kd6 {[%clk 0:00:20]} 41. Rf7 {[%clk 0:00:12]}  c3 {[%clk 0:00:12]} 42. Kd3 {[%clk 0:00:12]}  Rg1 {[%clk 0:00:08]} 43. Kxc3 {[%clk 0:00:10]}  Ke6 {[%clk 0:00:08]} 44. Ra7 {[%clk 0:00:10]}  Kf6 {[%clk 0:00:07]} 45. h6 {[%clk 0:00:08]}  gxh6 {[%clk 0:00:07]} 46. Rxh7 {[%clk 0:00:08]}  Kg6 {[%clk 0:00:07]} 47. Rh8 {[%clk 0:00:08]}  Rf1 {[%clk 0:00:08]} 48. Kd4 {[%clk 0:00:07]}  Rxf2 {[%clk 0:00:08]} 49. Ke5 {[%clk 0:00:08]}  Ra2 {[%clk 0:00:08]} 50. f5+ {[%clk 0:00:04]}  Kg7 {[%clk 0:00:08]} 51. Rd8 {[%clk 0:00:03]}  Ra5+ {[%clk 0:00:09]} 52. Kf4 {[%clk 0:00:04]}  h5 {[%clk 0:00:07]} 53. e4 {[%clk 0:00:04]}  h4 {[%clk 0:00:07]} 54. Kg4 {[%clk 0:00:04]}  Ra4 {[%clk 0:00:07]} 55. Re8 {[%clk 0:00:04]}  Kf7 {[%clk 0:00:03]} 56. Re6 {[%clk 0:00:05]}  Ra1 {[%clk 0:00:04]} 57. Kxh4 {[%clk 0:00:05]}  Rg1 {[%clk 0:00:05]} 58. Kh5 {[%clk 0:00:06]}  Rg3 {[%clk 0:00:04]} 59. Kh4 {[%clk 0:00:05]}  Rg1 {[%clk 0:00:05]} 60. Kh3 {[%clk 0:00:05]}  Rg8 {[%clk 0:00:04]} 61. Kh4 {[%clk 0:00:04]}  Rg1 {[%clk 0:00:04]} 1/2-1/2


[Site "https://www.chess.com"]

[Event "Titled Tuesday Blitz January 31 Early 2023"]
[White "Defend, Balint"]
[Black "Kosteniuk, Alexandra"]
[WhiteFideId "17004853"]
[BlackFideId "4128125"]
[WhiteElo "1673"]
[BlackElo "2535"]
[Result "0-1"]
[Round "08"]
[TimeControl "180+2"]
[Date "2023.01.31"]
[WhiteClock "0:00:01"]
[BlackClock "0:01:09"]

1. e4 {[%clk 0:03:00]}  c6 {[%clk 0:02:59]} 2. d4 {[%clk 0:03:00]}  d5 {[%clk 0:02:59]} 3. e5 {[%clk 0:03:00]}  c5 {[%clk 0:03:00]} 4. dxc5 {[%clk 0:03:00]}  e6 {[%clk 0:03:00]} 5. Be3 {[%clk 0:03:00]}  Nd7 {[%clk 0:02:53]} 6. c4 {[%clk 0:03:00]}  Nxc5 {[%clk 0:02:45]} 7. cxd5 {[%clk 0:02:55]}  exd5 {[%clk 0:02:45]} 8. Bxc5 {[%clk 0:02:35]}  Bxc5 {[%clk 0:02:44]} 9. Bb5+ {[%clk 0:02:35]}  Bd7 {[%clk 0:02:36]} 10. Qxd5 {[%clk 0:02:34]}  Bxb5 {[%clk 0:02:35]} 11. Qxc5 {[%clk 0:02:33]}  Qd3 {[%clk 0:02:31]} 12. Nd2 {[%clk 0:02:01]}  Rd8 {[%clk 0:02:31]} 13. Qc3 {[%clk 0:02:01]}  Qg6 {[%clk 0:02:24]} 14. Ngf3 {[%clk 0:01:41]}  Ne7 {[%clk 0:02:19]} 15. Nc4 {[%clk 0:00:59]}  O-O {[%clk 0:01:58]} 16. O-O {[%clk 0:00:54]}  Nd5 {[%clk 0:01:56]} 17. Qb3 {[%clk 0:00:49]}  Nf4 {[%clk 0:01:56]} 18. Ne3 {[%clk 0:00:49]}  Bxf1 {[%clk 0:01:50]} 19. Rxf1 {[%clk 0:00:50]}  Rd3 {[%clk 0:01:49]} 20. Qc4 {[%clk 0:00:46]}  Nxg2 {[%clk 0:01:43]} 21. Nxg2 {[%clk 0:00:30]}  Rxf3 {[%clk 0:01:43]} 22. Kh1 {[%clk 0:00:26]}  Qb6 {[%clk 0:01:31]} 23. Nh4 {[%clk 0:00:22]}  Rxf2 {[%clk 0:01:28]} 24. Rg1 {[%clk 0:00:21]}  Qxb2 {[%clk 0:01:17]} 25. Nf3 {[%clk 0:00:17]}  Qe2 {[%clk 0:01:10]} 26. Qxe2 {[%clk 0:00:04]}  Rxe2 {[%clk 0:01:10]} 27. a4 {[%clk 0:00:01]}  b6 {[%clk 0:01:09]} 0-1


[Site "https://www.chess.com"]

[Event "Titled Tuesday Blitz January 31 Early 2023"]
[White "Lotfizadeh, Mehdi"]
[Black "Ajay, Karthikeyan"]
[WhiteFideId "42513618"]
[BlackFideId "35011685"]
[WhiteElo "1529"]
[BlackElo "2454"]
[Result "1-0"]
[Round "08"]
[TimeControl "180+2"]
[Date "2023.01.31"]
[WhiteClock "0:01:45"]
[BlackClock "0:01:03"]

1. Nf3 {[%clk 0:03:00]}  Nf6 {[%clk 0:02:58]} 2. g3 {[%clk 0:03:00]}  b5 {[%clk 0:02:57]} 3. Bg2 {[%clk 0:02:59]}  Bb7 {[%clk 0:02:57]} 4. O-O {[%clk 0:02:59]}  e6 {[%clk 0:02:58]} 5. b3 {[%clk 0:02:58]}  Be7 {[%clk 0:02:50]} 6. c4 {[%clk 0:02:58]}  bxc4 {[%clk 0:02:49]} 7. bxc4 {[%clk 0:02:57]}  O-O {[%clk 0:02:49]} 8. Nc3 {[%clk 0:02:57]}  d5 {[%clk 0:02:45]} 9. Rb1 {[%clk 0:02:53]}  Ba6 {[%clk 0:02:28]} 10. cxd5 {[%clk 0:02:52]}  Nxd5 {[%clk 0:02:27]} 11. Nxd5 {[%clk 0:02:49]}  exd5 {[%clk 0:02:25]} 12. d3 {[%clk 0:02:49]}  Bf6 {[%clk 0:02:16]} 13. Qa4 {[%clk 0:02:41]}  Qd7 {[%clk 0:02:08]} 14. Qa5 {[%clk 0:02:39]}  Re8 {[%clk 0:01:43]} 15. Rxb8 {[%clk 0:02:25]}  Raxb8 {[%clk 0:01:44]} 16. Qxa6 {[%clk 0:02:25]}  Rxe2 {[%clk 0:01:43]} 17. Qxa7 {[%clk 0:02:22]}  Qc8 {[%clk 0:01:43]} 18. Bf4 {[%clk 0:02:18]}  Ra8 {[%clk 0:01:42]} 19. Qc5 {[%clk 0:02:16]}  Raxa2 {[%clk 0:01:41]} 20. Qxd5 {[%clk 0:02:13]}  h6 {[%clk 0:01:36]} 21. Nd4 {[%clk 0:02:00]}  Reb2 {[%clk 0:01:22]} 22. Be5 {[%clk 0:01:57]}  Bxe5 {[%clk 0:01:15]} 23. Qxe5 {[%clk 0:01:57]}  Qd7 {[%clk 0:01:08]} 24. Nf5 {[%clk 0:01:47]}  Rb5 {[%clk 0:01:03]} 25. Qxg7# {[%clk 0:01:45]} 1-0


[Site "https://www.chess.com"]

[Event "Titled Tuesday Blitz January 31 Early 2023"]
[White "Senthil, Maran K"]
[Black "Tristan, Leonardo"]
[WhiteFideId "25035681"]
[BlackFideId "113816"]
[WhiteElo "2209"]
[BlackElo "2545"]
[Result "1-0"]
[Round "08"]
[TimeControl "180+2"]
[Date "2023.01.31"]
[WhiteClock "0:00:14"]
[BlackClock "0:00:03"]

1. c4 {[%clk 0:02:56]}  e6 {[%clk 0:02:59]} 2. Nf3 {[%clk 0:02:56]}  d5 {[%clk 0:03:00]} 3. d4 {[%clk 0:02:57]}  Nf6 {[%clk 0:02:59]} 4. g3 {[%clk 0:02:57]}  Be7 {[%clk 0:02:59]} 5. Bg2 {[%clk 0:02:58]}  O-O {[%clk 0:03:00]} 6. Qc2 {[%clk 0:02:58]}  b6 {[%clk 0:02:45]} 7. cxd5 {[%clk 0:02:55]}  exd5 {[%clk 0:02:44]} 8. O-O {[%clk 0:02:54]}  c5 {[%clk 0:02:42]} 9. Nc3 {[%clk 0:02:46]}  Bb7 {[%clk 0:02:42]} 10. dxc5 {[%clk 0:02:41]}  bxc5 {[%clk 0:02:42]} 11. Ne5 {[%clk 0:02:41]}  Qc8 {[%clk 0:02:37]} 12. Bg5 {[%clk 0:02:30]}  d4 {[%clk 0:02:37]} 13. Bxf6 {[%clk 0:02:06]}  Bxf6 {[%clk 0:02:35]} 14. Nd5 {[%clk 0:01:59]}  Bd8 {[%clk 0:02:08]} 15. Rac1 {[%clk 0:01:47]}  Na6 {[%clk 0:02:08]} 16. Nd3 {[%clk 0:01:43]}  Rb8 {[%clk 0:01:49]} 17. Nxc5 {[%clk 0:01:37]}  Nxc5 {[%clk 0:00:53]} 18. Qxc5 {[%clk 0:01:38]}  Qxc5 {[%clk 0:00:54]} 19. Rxc5 {[%clk 0:01:39]}  Bxd5 {[%clk 0:00:54]} 20. Bxd5 {[%clk 0:01:32]}  Rxb2 {[%clk 0:00:54]} 21. Bc4 {[%clk 0:01:31]}  Bb6 {[%clk 0:00:52]} 22. Rf5 {[%clk 0:01:18]}  g6 {[%clk 0:00:50]} 23. Re5 {[%clk 0:01:13]}  Kg7 {[%clk 0:00:42]} 24. Rd1 {[%clk 0:01:06]}  Rb4 {[%clk 0:00:37]} 25. Bb3 {[%clk 0:01:03]}  a5 {[%clk 0:00:37]} 26. Rd3 {[%clk 0:00:51]}  a4 {[%clk 0:00:32]} 27. Bd5 {[%clk 0:00:47]}  Rb5 {[%clk 0:00:29]} 28. Rf3 {[%clk 0:00:37]}  Bc7 {[%clk 0:00:11]} 29. Re7 {[%clk 0:00:37]}  Rxd5 {[%clk 0:00:11]} 30. Rxc7 {[%clk 0:00:37]}  Re5 {[%clk 0:00:12]} 31. Kf1 {[%clk 0:00:36]}  g5 {[%clk 0:00:10]} 32. Rc4 {[%clk 0:00:35]}  Re4 {[%clk 0:00:08]} 33. Rxa4 {[%clk 0:00:35]}  Rfe8 {[%clk 0:00:09]} 34. Ra7 {[%clk 0:00:33]}  Rxe2 {[%clk 0:00:07]} 35. Rfxf7+ {[%clk 0:00:33]}  Kg6 {[%clk 0:00:08]} 36. Rg7+ {[%clk 0:00:32]}  Kf5 {[%clk 0:00:08]} 37. Raf7+ {[%clk 0:00:30]}  Kg4 {[%clk 0:00:08]} 38. Kg2 {[%clk 0:00:31]}  Kh5 {[%clk 0:00:06]} 39. Rxh7+ {[%clk 0:00:31]}  Kg6 {[%clk 0:00:06]} 40. Rhg7+ {[%clk 0:00:31]}  Kh6 {[%clk 0:00:07]} 41. g4 {[%clk 0:00:14]}  d3 {[%clk 0:00:07]} 42. Rh7+ {[%clk 0:00:14]}  Kg6 {[%clk 0:00:07]} 43. Rhg7+ {[%clk 0:00:14]}  Kh6 {[%clk 0:00:08]} 44. Rd7 {[%clk 0:00:14]}  d2 {[%clk 0:00:03]} 45. Rgf7 {[%clk 0:00:14]}  R8e4 {[%clk 0:00:03]} 46. Rf6# {[%clk 0:00:14]} 1-0


[Site "https://www.chess.com"]

[Event "Titled Tuesday Blitz January 31 Early 2023"]
[White "Starozhilov, Leonid"]
[Black "Ongut, Tamas Gunes"]
[WhiteFideId "14106752"]
[BlackFideId "770280"]
[WhiteElo "2313"]
[BlackElo "2299"]
[Result "1-0"]
[Round "08"]
[TimeControl "180+2"]
[Date "2023.01.31"]
[WhiteClock "0:01:32"]
[BlackClock "0:02:02"]

1. e4 {[%clk 0:03:00]}  c5 {[%clk 0:02:54]} 2. Nf3 {[%clk 0:03:00]}  e6 {[%clk 0:02:54]} 3. c4 {[%clk 0:03:00]}  Nc6 {[%clk 0:02:52]} 4. d4 {[%clk 0:03:00]}  cxd4 {[%clk 0:02:51]} 5. Nxd4 {[%clk 0:03:00]}  Nf6 {[%clk 0:02:51]} 6. Nc3 {[%clk 0:03:00]}  Bb4 {[%clk 0:02:50]} 7. Nxc6 {[%clk 0:03:00]}  bxc6 {[%clk 0:02:47]} 8. Bd3 {[%clk 0:03:00]}  d5 {[%clk 0:02:47]} 9. exd5 {[%clk 0:02:59]}  exd5 {[%clk 0:02:47]} 10. O-O {[%clk 0:02:59]}  O-O {[%clk 0:02:46]} 11. Bg5 {[%clk 0:02:59]}  h6 {[%clk 0:02:45]} 12. Bh4 {[%clk 0:02:59]}  Be7 {[%clk 0:02:44]} 13. cxd5 {[%clk 0:02:56]}  cxd5 {[%clk 0:02:44]} 14. Bxf6 {[%clk 0:02:48]}  Bxf6 {[%clk 0:02:44]} 15. Nxd5 {[%clk 0:02:48]}  Bxb2 {[%clk 0:02:43]} 16. Rb1 {[%clk 0:02:48]}  Be5 {[%clk 0:02:36]} 17. Re1 {[%clk 0:02:42]}  Bd6 {[%clk 0:02:29]} 18. Qf3 {[%clk 0:02:23]}  Qh4 {[%clk 0:02:26]} 19. Ne7+ {[%clk 0:02:04]}  Kh8 {[%clk 0:02:25]} 20. g3 {[%clk 0:01:59]}  Qd4 {[%clk 0:02:19]} 21. Qxa8 {[%clk 0:01:55]}  Bc5 {[%clk 0:02:04]} 22. Qf3 {[%clk 0:01:35]}  Bg4 {[%clk 0:02:02]} 23. Qf4 {[%clk 0:01:32]} 1-0


[Site "https://www.chess.com"]

[Event "Titled Tuesday Blitz January 31 Early 2023"]
[White "Mirzoev, Azer"]
[Black "Ronka, Erik"]
[WhiteFideId "13400304"]
[BlackFideId "505080"]
[WhiteElo "2416"]
[BlackElo "2276"]
[Result "1-0"]
[Round "08"]
[TimeControl "180+2"]
[Date "2023.01.31"]
[WhiteClock "0:00:16"]
[BlackClock "0:00:03"]

1. c4 {[%clk 0:03:00]}  c6 {[%clk 0:02:59]} 2. e4 {[%clk 0:02:45]}  d5 {[%clk 0:03:00]} 3. exd5 {[%clk 0:02:43]}  cxd5 {[%clk 0:03:01]} 4. cxd5 {[%clk 0:02:43]}  Nf6 {[%clk 0:03:01]} 5. Qa4+ {[%clk 0:02:43]}  Nbd7 {[%clk 0:03:00]} 6. Nc3 {[%clk 0:02:40]}  g6 {[%clk 0:03:00]} 7. Bc4 {[%clk 0:02:40]}  Bg7 {[%clk 0:02:59]} 8. d3 {[%clk 0:02:40]}  O-O {[%clk 0:02:58]} 9. Nf3 {[%clk 0:02:41]}  a6 {[%clk 0:02:57]} 10. Qa3 {[%clk 0:02:40]}  b6 {[%clk 0:02:57]} 11. O-O {[%clk 0:02:37]}  Bb7 {[%clk 0:02:58]} 12. Re1 {[%clk 0:02:37]}  Re8 {[%clk 0:02:57]} 13. Ng5 {[%clk 0:02:28]}  Rc8 {[%clk 0:02:48]} 14. d6 {[%clk 0:02:11]}  e6 {[%clk 0:02:46]} 15. Bf4 {[%clk 0:02:07]}  b5 {[%clk 0:02:08]} 16. Bb3 {[%clk 0:02:07]}  Qb6 {[%clk 0:01:45]} 17. Qb4 {[%clk 0:01:57]}  Bf8 {[%clk 0:01:39]} 18. Nge4 {[%clk 0:01:51]}  Nh5 {[%clk 0:01:25]} 19. Be3 {[%clk 0:01:49]}  Qc6 {[%clk 0:01:24]} 20. Rac1 {[%clk 0:01:42]}  Ne5 {[%clk 0:00:40]} 21. Red1 {[%clk 0:01:34]}  Qd7 {[%clk 0:00:27]} 22. a4 {[%clk 0:01:20]}  Nc6 {[%clk 0:00:26]} 23. Qc5 {[%clk 0:01:14]}  Na5 {[%clk 0:00:26]} 24. Qxh5 {[%clk 0:01:13]}  gxh5 {[%clk 0:00:22]} 25. Nf6+ {[%clk 0:01:13]}  Kg7 {[%clk 0:00:23]} 26. Nxd7 {[%clk 0:01:13]}  Nxb3 {[%clk 0:00:23]} 27. Rb1 {[%clk 0:01:06]}  Bxd6 {[%clk 0:00:21]} 28. axb5 {[%clk 0:01:05]}  axb5 {[%clk 0:00:21]} 29. Nxb5 {[%clk 0:01:02]}  Be7 {[%clk 0:00:20]} 30. Nb6 {[%clk 0:00:57]}  Rb8 {[%clk 0:00:20]} 31. Nc3 {[%clk 0:00:56]}  Bxg2 {[%clk 0:00:18]} 32. Kxg2 {[%clk 0:00:55]}  Nc5 {[%clk 0:00:18]} 33. Bxc5 {[%clk 0:00:51]}  Bxc5 {[%clk 0:00:18]} 34. Nd7 {[%clk 0:00:52]}  Rbc8 {[%clk 0:00:18]} 35. Nxc5 {[%clk 0:00:53]}  Rxc5 {[%clk 0:00:18]} 36. d4 {[%clk 0:00:50]}  Rg5+ {[%clk 0:00:18]} 37. Kf1 {[%clk 0:00:50]}  Kh6 {[%clk 0:00:19]} 38. Ke2 {[%clk 0:00:48]}  Rg2 {[%clk 0:00:14]} 39. h3 {[%clk 0:00:48]}  e5 {[%clk 0:00:13]} 40. dxe5 {[%clk 0:00:47]}  Rxe5+ {[%clk 0:00:12]} 41. Kf1 {[%clk 0:00:48]}  Rh2 {[%clk 0:00:12]} 42. Rd3 {[%clk 0:00:35]}  Rc5 {[%clk 0:00:12]} 43. Rbd1 {[%clk 0:00:31]}  Rh1+ {[%clk 0:00:10]} 44. Kg2 {[%clk 0:00:30]}  Rxd1 {[%clk 0:00:10]} 45. Nxd1 {[%clk 0:00:29]}  Rc4 {[%clk 0:00:11]} 46. Ne3 {[%clk 0:00:28]}  Rb4 {[%clk 0:00:11]} 47. b3 {[%clk 0:00:28]}  Kg5 {[%clk 0:00:11]} 48. Rc3 {[%clk 0:00:27]}  f5 {[%clk 0:00:11]} 49. Nd5 {[%clk 0:00:26]}  Rb5 {[%clk 0:00:10]} 50. f4+ {[%clk 0:00:22]}  Kg6 {[%clk 0:00:08]} 51. Ne3 {[%clk 0:00:21]}  h4 {[%clk 0:00:05]} 52. Kf3 {[%clk 0:00:20]}  Rb4 {[%clk 0:00:05]} 53. Rd3 {[%clk 0:00:20]}  Kh5 {[%clk 0:00:05]} 54. Rc3 {[%clk 0:00:19]}  h6 {[%clk 0:00:04]} 55. Rc5 {[%clk 0:00:18]}  Kg6 {[%clk 0:00:03]} 56. Rc6+ {[%clk 0:00:18]}  Kh5 {[%clk 0:00:03]} 57. Rc5 {[%clk 0:00:16]} 1-0


[Site "https://www.chess.com"]